bitfinex-derivatives/quotes_SOLF0:USTF0_20250528
["timestamp","ask_amount","ask_price","bid_price","bid_amount"]
[1748437260642,0.04302318,174.07,174.06,5.7424]
[1748437266339,28.7,174.13,174.09,5.7411]
[1748437266541,28.72,174.16,174.09,5.7411]
[1748437266740,28.72,174.16,174.07,28.72]
[1748437266941,28.72,174.16,174.1,5.7409]
[1748437267140,5.7402,174.13,174.1,5.7409]
[1748437267447,5.78302063,174.13,174.1,5.78013778]
[1748437267846,0.04282063,174.13,174.1,0.03923778]
[1748437268347,0.04282063,174.13,174.1,3.91823778]
[1748437268945,0.04282063,174.13,174.12,5.7404]
[1748437269138,0.04282063,174.13,174.1,3.91823778]
[1748437269139,0.04282063,174.13,174.1,0.03923778]
[1748437269344,5.7407,174.11,174.1,0.03923778]
[1748437275056,5.7424,174.06,174.04,5.743]
[1748437275255,0.04282063,174.13,174.04,5.743]
[1748437275256,1.9996,174.13,174.04,5.743]
[1748437275456,1.9996,174.13,174.03,32.579]
[1748437275755,1.9996,174.13,174.05,5.7426]
[1748437276155,5.7419,174.08,174.07,0.03743274]
[1748437277056,0.04326964,174.11,174.07,0.03743274]
[1748437277961,5.7415,174.09,174.07,0.03743274]
[1748437278154,0.04326964,174.11,174.07,0.03743274]
[1748437279160,5.7416,174.09,174.07,0.03743274]
[1748437280057,5.7412,174.1,174.07,5.77923274]
[1748437280365,5.7412,174.1,174.07,0.03743274]
[1748437280561,0.04326964,174.11,174.07,0.03743274]
[1748437281059,0.04326964,174.11,174.07,28.75743274]
[1748437282062,0.04326964,174.11,174.1,5.741]
[1748437282865,28.72,174.17,174.09,6.67967031]
[1748437283067,3.9236,174.19,174.09,6.67967031]
[1748437283369,5.7393,174.16,174.13,5.74]
[1748437283570,1.9123,174.19,174.13,5.74]
[1748437283771,0.03843547,174.18,174.14,0.04234237]
[1748437283968,5.7394,174.15,174.14,0.04234237]
[1748437284362,5.7392,174.16,174.14,0.04234237]
[1748437284871,0.03843547,174.18,174.14,0.04234237]
[1748437285068,5.7389,174.17,174.14,5.78184237]
[1748437285769,0.03843547,174.18,174.14,0.04234237]
[1748437286375,5.7389,174.17,174.14,5.78204237]
[1748437286577,0.03843547,174.18,174.14,0.04234237]
[1748437288080,5.7391,174.16,174.14,5.78194237]
[1748437288376,0.03843547,174.18,174.14,5.78194237]
[1748437288778,5.7389,174.17,174.14,5.78194237]
[1748437289380,0.03843547,174.18,174.14,5.78204237]
[1748437289582,0.03843547,174.18,174.14,0.04234237]
[1748437290174,5.7392,174.16,174.14,0.04234237]
[1748437290778,5.7394,174.15,174.14,0.04234237]
[1748437291078,0.03843547,174.18,174.14,5.78174237]
[1748437291270,0.03843547,174.18,174.14,0.04234237]
[1748437292378,5.77703547,174.18,174.15,5.7392]
[1748437292773,0.03843547,174.18,174.14,0.04234237]
[1748437292987,5.7393,174.16,174.14,0.04234237]
[1748437293387,5.7388,174.17,174.14,0.04234237]
[1748437293579,0.03843547,174.18,174.14,0.04234237]
[1748437293982,5.7394,174.15,174.14,0.04234237]
[1748437295587,5.7391,174.16,174.14,0.04234237]
[1748437295974,0.03843547,174.18,174.14,0.04234237]
[1748437295975,5.77703547,174.18,174.14,0.04234237]
[1748437296180,0.03843547,174.18,174.14,0.04234237]
[1748437296987,5.7394,174.15,174.14,0.04234237]
[1748437298888,5.7392,174.16,174.14,0.04234237]
[1748437299086,0.03843547,174.18,174.14,0.04234237]
[1748437299887,5.7394,174.15,174.14,0.04234237]
[1748437300488,0.03843547,174.18,174.14,0.04234237]
[1748437301491,5.77683547,174.18,174.16,5.7389]
[1748437302391,5.77683547,174.18,174.15,5.7393]
[1748437303393,5.7388,174.17,174.14,5.78194237]
[1748437303795,0.03843547,174.18,174.14,0.04234237]
[1748437304495,5.77703547,174.18,174.15,5.7391]
[1748437304894,5.7388,174.17,174.15,5.7391]
[1748437305095,5.7388,174.17,174.14,5.78194237]
[1748437305299,0.03843547,174.18,174.14,0.04234237]
[1748437305595,5.7388,174.17,174.14,0.04234237]
[1748437305800,0.03843547,174.18,174.14,0.04234237]
[1748437306990,5.7394,174.15,174.14,0.04234237]
[1748437307390,28.66,174.16,174.09,28.66]
[1748437307591,28.66,174.16,174.06,28.66]
[1748437307792,41.06956927,174.16,174.06,28.66]
[1748437308192,41.06956927,174.16,174.06,34.4021]
[1748437308392,0.03800287,174.13,174.09,0.03616262]
[1748437310900,5.741,174.1,174.09,0.03616262]
[1748437312093,5.741,174.1,174.03,34.4032]
[1748437312094,5.7429,174.05,174.03,28.66]
[1748437312294,5.7429,174.05,174.0,28.66]
[1748437312489,5.7429,174.05,174.03,5.7433]
[1748437312695,5.7425,174.06,174.03,5.7433]
[1748437313092,5.78347216,174.06,174.03,5.7660243]
[1748437313608,0.04097216,174.06,174.04,5.7429]
[1748437314204,0.04097216,174.06,174.03,0.0227243]
[1748437315399,0.04097216,174.06,174.05,5.7427]
[1748437318104,0.04097216,174.06,174.04,5.7429]
[1748437318708,0.04097216,174.06,174.05,5.7427]
[1748437320696,5.7408,174.11,174.08,5.7415]
[1748437320898,28.66,174.14,174.05,1.9719]
[1748437321207,5.7405,174.12,174.09,5.7412]
[1748437321410,28.66,174.19,174.09,10.34236927]
[1748437321601,0.04290528,174.16,174.12,0.04065022]
[1748437322500,0.04290528,174.16,174.14,5.7396]
[1748437323003,0.04290528,174.16,174.13,5.7399]
[1748437323606,0.04290528,174.16,174.12,0.04065022]
[1748437324205,5.74,174.13,174.12,0.04065022]
[1748437329814,38.98236927,174.15,174.06,5.7423]
[1748437330019,50.46126927,174.15,174.05,28.64]
[1748437330214,52.41086927,174.15,174.05,28.64]
[1748437330719,28.64,174.22,174.07,10.34236927]
[1748437330919,0.03624117,174.16,174.13,0.02304624]
[1748437332216,0.03624117,174.16,174.15,5.7394]
[1748437333019,524.66,174.25,174.18,5.7383]
[1748437333218,5.7384,174.19,174.14,2.0744]
[1748437333423,524.66,174.25,174.15,5.7391]
[1748437333721,524.66,174.25,174.13,28.64]
[1748437333921,0.04349437,174.21,174.17,0.03825068]
[1748437334119,28.68349437,174.21,174.17,0.03825068]
[1748437334318,5.7384,174.18,174.17,0.03825068]
[1748437335326,12.32406927,174.2,174.1,28.64]
[1748437335531,28.64,174.19,174.1,28.64]
[1748437335825,28.64,174.19,174.08,9.7017]
[1748437336026,10.34236927,174.17,174.08,2.08]
[1748437336429,0.03622593,174.14,174.11,0.02103673]
[1748437336930,5.7403,174.12,174.11,0.02103673]
[1748437338324,5.7425,174.06,174.04,28.64]
[1748437338522,1.9183,174.13,174.04,28.64]
[1748437338719,28.64,174.12,174.03,2.0792]
[1748437339424,0.03693736,174.09,174.03,2.0792]
[1748437340025,0.03693736,174.09,174.03,7.8224]
[1748437340225,5.7425,174.06,174.03,7.8224]
[1748437340530,5.7425,174.06,174.03,2.0792]
[1748437340728,0.03693736,174.09,174.03,2.0792]
[1748437341228,0.03693736,174.09,174.06,5.7421]
[1748437341922,0.03693736,174.09,174.03,2.0792]
[1748437342125,5.77833736,174.09,174.03,2.0792]
[1748437342529,0.03693736,174.09,174.03,2.0792]
[1748437342932,0.03693736,174.09,174.07,5.7418]
[1748437343725,0.03693736,174.09,174.08,5.7417]
[1748437345420,0.03693736,174.09,174.05,28.64]
[1748437345421,5.74,174.13,174.1,5.741]
[1748437346429,5.7405,174.12,174.09,5.7413]
[1748437346623,0.03864275,174.13,174.07,0.03693736]
[1748437348325,0.03864275,174.13,174.12,5.7403]
[1748437348625,28.64,174.19,174.11,0.03693736]
[1748437348831,5.739,174.17,174.14,5.7394]
[1748437349132,28.64,174.19,174.1,28.64]
[1748437349330,28.64,174.19,174.1,34.3807]
[1748437349534,0.0404437,174.16,174.13,0.04249712]
[1748437350334,5.7397,174.14,174.13,0.04249712]
[1748437355932,5.7394,174.15,174.13,0.04249712]
[1748437356633,5.7397,174.14,174.13,0.04249712]
[1748437365833,34.4997,174.14,174.13,9.712e-05]
[1748437370337,5.7397,174.14,174.13,9.712e-05]
[1748437380751,10.38575088,174.16,174.04,30.8103]
[1748437381045,5.7423,174.07,174.04,30.8103]
[1748437381644,0.04242541,174.07,174.06,5.7423]
[1748437382041,28.76,174.14,174.04,41.18869017]
[1748437382239,28.76,174.14,174.04,41.15560718]
[1748437382436,5.7405,174.12,174.09,5.7411]
[1748437383040,5.78378448,174.12,174.09,5.7832224]
[1748437383237,5.7407,174.11,174.09,0.0421224]
[1748437383548,0.04328448,174.12,174.09,0.0421224]
[1748437383939,5.7409,174.11,174.09,5.7834224]
[1748437384144,0.04328448,174.12,174.09,5.7834224]
[1748437384445,5.78368448,174.12,174.09,5.7834224]
[1748437384647,0.04328448,174.12,174.09,5.7834224]
[1748437384848,0.04328448,174.12,174.09,0.0421224]
[1748437385349,5.7409,174.11,174.09,0.0421224]
[1748437385741,5.7409,174.11,174.09,5.7834224]
[1748437386148,5.7409,174.11,174.09,0.0421224]
[1748437386847,5.741,174.1,174.09,0.0421224]
[1748437390247,5.741,174.1,174.09,2.24e-05]
[1748437390554,34.361,174.1,174.09,2.24e-05]
[1748437394958,5.741,174.1,174.09,2.24e-05]
[1748437405047,5.743,174.04,174.0,28.64]
[1748437405452,5.743,174.04,174.01,5.7438]
[1748437405852,10.34530718,174.09,174.0,34.3842]
[1748437406157,0.04373504,174.06,174.03,0.033386]
[1748437406359,5.743,174.04,174.03,0.033386]
[1748437407256,5.7429,174.05,174.03,0.033386]
[1748437407656,5.78623504,174.06,174.03,0.033386]
[1748437407850,0.04373504,174.06,174.03,0.033386]
[1748437408557,0.04373504,174.06,174.04,5.7428]
[1748437408857,0.04373504,174.06,174.03,0.033386]
[1748437409356,5.78613504,174.06,174.04,5.7427]
[1748437409557,0.04373504,174.06,174.04,5.7427]
[1748437410252,0.04373504,174.06,174.03,0.033386]
[1748437410757,0.04373504,174.06,174.04,5.7427]
[1748437411056,5.78613504,174.06,174.04,5.7427]
[1748437413063,5.7427,174.05,174.03,0.033386]
[1748437413263,0.04373504,174.06,174.03,0.033386]
[1748437414364,0.04373504,174.06,174.04,5.7428]
[1748437414957,5.78623504,174.06,174.03,5.776586]
[1748437415562,5.78623504,174.06,174.04,5.743]
[1748437415759,0.04373504,174.06,174.03,0.033386]
[1748437416160,5.78623504,174.06,174.04,5.7427]
[1748437416457,5.78623504,174.06,174.03,0.033386]
[1748437417761,0.04373504,174.06,174.03,0.033386]
[1748437418162,0.04373504,174.06,174.05,5.7426]
[1748437418367,28.64,174.11,174.04,34.6771]
[1748437418667,5.7415,174.09,174.04,34.6771]
[1748437419066,5.7415,174.09,174.06,5.7421]
[1748437419268,5.78339064,174.09,174.06,5.7421]
[1748437419659,5.7417,174.08,174.06,5.7421]
[1748437419867,5.7417,174.08,174.04,34.6771]
[1748437419868,0.04189064,174.09,174.04,34.6771]
[1748437420064,5.7404,174.12,174.04,34.6771]
[1748437420459,28.68,174.17,174.04,34.6771]
[1748437421065,0.0403398,174.12,174.09,5.77924343]
[1748437421666,5.7808398,174.12,174.09,5.77924343]
[1748437422561,5.7407,174.11,174.09,5.77924343]
[1748437423772,0.0403398,174.12,174.09,5.77924343]
[1748437424869,0.0403398,174.12,174.11,5.7407]
[1748437425868,0.0403398,174.12,174.1,7.6808]
[1748437427577,5.7407,174.11,174.1,1.9399]
[1748437427774,0.0403398,174.12,174.1,1.9399]
[1748437429072,0.0403398,174.12,174.1,7.6809]
[1748437429073,5.7808398,174.12,174.1,7.6809]
[1748437429882,0.0403398,174.12,174.11,5.7407]
[1748437430677,0.0403398,174.12,174.1,1.9399]
[1748437430881,0.0403398,174.12,174.09,0.03804343]
[1748437431284,5.741,174.1,174.09,0.03804343]
[1748437440597,5.7428,174.05,174.03,7.6775]
[1748437441186,5.7428,174.05,174.03,1.9343]
[1748437443398,5.7428,174.05,174.03,7.6775]
[1748437443594,5.7428,174.05,174.03,1.9343]
[1748437443998,5.743,174.04,174.02,28.72065279]
[1748437444602,5.7433,174.03,174.02,28.72065279]
[1748437445201,5.7433,174.03,174.02,0.04065279]
[1748437445900,5.7431,174.04,174.02,0.04065279]
[1748437446296,0.03907293,174.06,174.02,0.04065279]
[1748437446505,5.7433,174.03,174.02,0.04065279]
[1748437448904,5.7433,174.03,174.02,5.279e-05]
[1748437505358,0.03907293,174.06,174.02,5.279e-05]
[1748437505359,5.7431,174.04,174.02,5.279e-05]
[1748437505556,0.03907293,174.06,174.02,5.279e-05]
[1748437505752,5.7433,174.03,174.02,5.279e-05]
[1748437506860,5.7431,174.04,174.02,5.279e-05]
[1748437507362,0.03907293,174.06,174.02,5.279e-05]
[1748437507558,5.7432,174.04,174.02,5.279e-05]
[1748437507865,0.03907293,174.06,174.02,5.279e-05]
[1748437508363,5.7433,174.03,174.02,5.279e-05]
[1748437511359,5.7431,174.04,174.02,5.279e-05]
[1748437511660,0.03907293,174.06,174.02,5.279e-05]
[1748437512974,5.7433,174.03,174.02,5.279e-05]
[1748437527481,6.66666054,174.06,174.02,6.6276404]
[1748437527482,0.03907293,174.06,174.02,6.6276404]
[1748437528873,5.7433,174.03,174.02,6.6276404]
[1748437529476,5.7433,174.03,174.02,5.279e-05]
[1748437530489,12.37088761,174.03,174.02,5.279e-05]
[1748437531985,5.7433,174.03,174.02,5.279e-05]
[1748437552008,5.7456,173.96,173.95,2.0]
[1748437552200,6.6323595,174.0,173.95,2.0]
[1748437552503,5.7455,173.97,173.95,2.0]
[1748437553505,0.04286687,173.98,173.95,8.6323595]
[1748437554601,0.04286687,173.98,173.95,14.3781595]
[1748437555098,5.78796687,173.98,173.95,14.3781595]
[1748437555300,5.78796687,173.98,173.95,7.7458]
[1748437555998,0.04286687,173.98,173.95,2.0]
[1748437557302,5.7456,173.96,173.94,28.68031545]
[1748437558699,5.7453,173.97,173.94,34.42651545]
[1748437558898,5.7453,173.97,173.94,28.68031545]
[1748437559102,6.6323595,173.96,173.94,0.04031545]
[1748437560012,5.7459,173.95,173.94,0.04031545]
[1748437560700,0.04286687,173.98,173.94,0.04031545]
[1748437561011,0.04286687,173.98,173.96,5.7455]
[1748437561207,0.04286687,173.98,173.95,1.9198]
[1748437561810,0.04286687,173.98,173.95,8.5521595]
[1748437562205,0.04286687,173.98,173.97,5.7453]
[1748437562709,0.04286687,173.98,173.96,5.7455]
[1748437563708,5.78786687,173.98,173.95,14.2979595]
[1748437563915,5.78786687,173.98,173.95,7.6656]
[1748437564206,5.7454,173.97,173.95,1.9198]
[1748437564511,0.04286687,173.98,173.95,1.9198]
[1748437564907,0.04286687,173.98,173.94,28.68031545]
[1748437564908,0.04286687,173.98,173.94,0.04031545]
[1748437565408,5.7459,173.95,173.94,0.04031545]
[1748437572818,5.7476,173.9,173.89,1.9368]
[1748437573030,28.64,173.95,173.88,2.055]
[1748437573322,5.7478,173.9,173.88,2.055]
[1748437573724,28.64,173.95,173.84,5.7495]
[1748437573725,10.36039023,173.93,173.84,5.7495]
[1748437573915,0.03941817,173.91,173.81,1.9063]
[1748437574115,28.67941817,173.91,173.81,1.9063]
[1748437574321,5.7481,173.89,173.84,5.7494]
[1748437574515,28.67941817,173.91,173.84,5.7494]
[1748437574717,28.67941817,173.91,173.84,5.7495]
[1748437574915,5.7483,173.88,173.84,5.7495]
[1748437575120,5.7483,173.88,173.81,1.9063]
[1748437575314,0.03959623,173.86,173.81,1.9063]
[1748437575721,0.03959623,173.86,173.84,5.7494]
[1748437576329,0.03959623,173.86,173.81,1.9063]
[1748437577422,0.03959623,173.86,173.8,1.9169]
[1748437577624,0.03959623,173.86,173.77,28.64]
[1748437577822,0.04087894,173.83,173.77,28.64]
[1748437578225,0.04087894,173.83,173.78,2.0077]
[1748437579228,0.04087894,173.83,173.8,5.7507]
[1748437579930,0.04087894,173.83,173.78,2.0077]
[1748437581028,5.79077894,173.83,173.8,5.7507]
[1748437581629,0.04087894,173.83,173.78,2.0077]
[1748437582030,5.79107894,173.83,173.78,2.0077]
[1748437582428,0.04087894,173.83,173.78,2.0077]
[1748437582626,5.79087894,173.83,173.78,2.0077]
[1748437583129,0.04087894,173.83,173.78,2.0077]
[1748437584524,28.68087894,173.83,173.78,2.0077]
[1748437584730,28.68087894,173.83,173.75,1.9126]
[1748437584927,10.36039023,173.82,173.75,1.9126]
[1748437585131,10.36039023,173.82,173.74,1.9299]
[1748437586628,5.7515,173.79,173.74,1.9299]
[1748437586830,0.03737428,173.78,173.72,2.0535]
[1748437587033,5.78917428,173.78,173.72,7.8068]
[1748437587635,5.7521,173.77,173.72,5.7533]
[1748437587934,0.03737428,173.78,173.73,5.7531]
[1748437588136,0.03737428,173.78,173.7,1.9234]
[1748437588633,0.03737428,173.78,173.72,5.7533]
[1748437588837,5.7522,173.76,173.72,5.7533]
[1748437589036,0.03737428,173.78,173.7,1.9234]
[1748437589737,0.03737428,173.78,173.74,5.7526]
[1748437590036,5.78927428,173.78,173.74,5.7526]
[1748437590437,5.7522,173.77,173.7,1.9234]
[1748437592242,5.7522,173.76,173.73,5.7529]
[1748437592742,5.7525,173.75,173.7,1.9234]
[1748437592934,0.03961965,173.74,173.7,1.9234]
[1748437593746,0.03961965,173.74,173.73,5.7532]
[1748437596641,0.03961965,173.74,173.72,5.7533]
[1748437596842,0.03961965,173.74,173.7,1.9234]
[1748437597543,0.03961965,173.74,173.73,5.7532]
[1748437600342,0.03961965,173.74,173.72,5.7534]
[1748437600937,5.79271965,173.74,173.7,1.9234]
[1748437601541,0.03961965,173.74,173.7,1.9234]
[1748437602244,1.9107,173.89,173.72,10.36039023]
[1748437602441,29.2,173.84,173.73,31.2557]
[1748437602642,29.2,173.85,173.75,10.36039023]
[1748437603036,29.2,173.85,173.73,31.2557]
[1748437603037,5.7509,173.81,173.78,5.7513]
[1748437603239,0.03998939,173.81,173.78,0.04045358]
[1748437604942,5.79088939,173.81,173.78,0.04045358]
[1748437605343,0.03998939,173.81,173.78,0.04045358]
[1748437605539,5.7512,173.79,173.78,0.04045358]
[1748437607844,0.03998939,173.81,173.78,0.04045358]
[1748437608248,5.7509,173.8,173.78,0.04045358]
[1748437609143,5.7512,173.79,173.78,0.04045358]
[1748437609339,0.03998939,173.81,173.78,0.04045358]
[1748437610144,5.7512,173.79,173.78,0.04045358]
[1748437611248,0.03998939,173.81,173.78,0.04045358]
[1748437611549,0.03998939,173.81,173.79,5.751]
[1748437611749,0.03998939,173.81,173.78,29.24045358]
[1748437611949,0.03998939,173.81,173.79,5.7512]
[1748437612449,0.03998939,173.81,173.78,29.24045358]
[1748437613047,0.03998939,173.81,173.8,5.7509]
[1748437614049,0.03998939,173.81,173.79,7.7181]
[1748437614249,0.03998939,173.81,173.79,1.9671]
[1748437615545,5.79078939,173.81,173.79,1.9671]
[1748437615852,0.03998939,173.81,173.79,1.9671]
[1748437617048,5.79078939,173.81,173.79,1.9671]
[1748437619350,0.03998939,173.81,173.78,29.24045358]
[1748437620244,5.7509,173.8,173.78,29.24045358]
[1748437620645,0.03998939,173.81,173.78,29.24045358]
[1748437620850,5.7509,173.8,173.78,29.24045358]
[1748437621050,0.03998939,173.81,173.78,0.04045358]
[1748437621250,5.7512,173.79,173.78,0.04045358]
[1748437622049,5.751,173.8,173.78,0.04045358]
[1748437622547,5.7512,173.79,173.78,0.04045358]
[1748437623457,5.79078939,173.81,173.78,0.04045358]
[1748437623649,0.03998939,173.81,173.78,0.04045358]
[1748437624252,0.03998939,173.81,173.8,5.7509]
[1748437624753,0.03998939,173.81,173.78,0.04045358]
[1748437625561,5.7512,173.79,173.78,0.04045358]
[1748437631159,0.03998939,173.81,173.78,0.04045358]
[1748437631652,5.7512,173.79,173.78,0.04045358]
[1748437633367,5.7526,173.75,173.72,29.0]
[1748437633862,10.36039023,173.81,173.72,29.0]
[1748437634061,10.36039023,173.81,173.72,34.7533]
[1748437634264,5.7525,173.76,173.72,34.7533]
[1748437634665,5.7525,173.76,173.73,5.7531]
[1748437635068,5.7519,173.77,173.72,29.0]
[1748437635367,5.7519,173.77,173.74,5.7527]
[1748437635869,0.04345734,173.78,173.77,5.7519]
[1748437637972,5.7504,173.82,173.77,1.9877]
[1748437638475,5.7504,173.82,173.79,5.751]
[1748437638777,5.7504,173.82,173.77,1.9877]
[1748437638966,0.04396383,173.81,173.79,5.7509]
[1748437640275,0.04396383,173.81,173.8,5.7509]
[1748437640483,0.04396383,173.81,173.78,0.04273093]
[1748437641073,0.04396383,173.81,173.79,5.7511]
[1748437641767,0.04396383,173.81,173.78,0.04273093]
[1748437642373,5.7511,173.8,173.78,0.04273093]
[1748437643676,0.04396383,173.81,173.78,0.04273093]
[1748437644184,5.79456383,173.81,173.78,5.79403093]
[1748437645878,0.04396383,173.81,173.79,5.7512]
[1748437646081,0.04396383,173.81,173.78,0.04273093]
[1748437646489,5.79466383,173.81,173.78,5.79403093]
[1748437646781,0.04396383,173.81,173.78,0.04273093]
[1748437646977,5.7512,173.79,173.78,0.04273093]
[1748437662195,5.751,173.8,173.78,0.04273093]
[1748437662390,0.04396383,173.81,173.78,0.04273093]
[1748437664585,5.7512,173.79,173.78,0.04273093]
[1748437672694,5.751,173.8,173.78,0.04273093]
[1748437673904,5.751,173.8,173.78,5.79423093]
[1748437674302,5.79466383,173.81,173.78,5.79423093]
[1748437674900,5.7509,173.8,173.78,5.79423093]
[1748437676406,5.79476383,173.81,173.78,0.04273093]
[1748437678109,0.04396383,173.81,173.78,0.04273093]
[1748437678709,5.79466383,173.81,173.79,5.7511]
[1748437679206,5.79466383,173.81,173.78,5.79413093]
[1748437679603,5.79466383,173.81,173.79,5.7512]
[1748437679803,0.04396383,173.81,173.78,0.04273093]
[1748437680705,0.04396383,173.81,173.78,1.97983093]
[1748437680907,0.04396383,173.81,173.8,5.7509]
[1748437682404,0.04396383,173.81,173.78,1.97983093]
[1748437683611,0.04396383,173.81,173.79,5.7512]
[1748437684103,0.04396383,173.81,173.78,7.73123093]
[1748437684304,5.79456383,173.81,173.78,7.73123093]
[1748437685003,0.04396383,173.81,173.78,1.97983093]
[1748437685708,5.7512,173.79,173.78,1.97983093]
[1748437685907,0.04396383,173.81,173.78,1.97983093]
[1748437686905,5.751,173.8,173.78,1.97983093]
[1748437687512,5.79466383,173.81,173.78,7.73133093]
[1748437687808,0.04396383,173.81,173.78,1.97983093]
[1748437688109,5.7511,173.8,173.78,1.97983093]
[1748437688504,5.7511,173.8,173.78,7.73133093]
[1748437688907,5.7512,173.79,173.78,1.97983093]
[1748437689113,0.04396383,173.81,173.78,1.97983093]
[1748437690012,5.79456383,173.81,173.78,7.73113093]
[1748437690211,0.04396383,173.81,173.78,7.73113093]
[1748437690908,5.7509,173.8,173.78,7.73113093]
[1748437691404,5.79466383,173.81,173.78,7.73113093]
[1748437691600,32.8536,173.91,173.79,10.36039023]
[1748437692501,5.7504,173.82,173.79,10.36039023]
[1748437692905,0.03654886,173.82,173.79,10.3993067]
[1748437694211,0.03654886,173.82,173.81,5.7505]
[1748437694407,0.03654886,173.82,173.81,34.7705]
[1748437695112,32.8536,173.91,173.83,5.7497]
[1748437695315,5.7491,173.86,173.83,5.7497]
[1748437695612,32.8536,173.91,173.81,34.7703]
[1748437696008,0.0437915,173.88,173.84,0.04138718]
[1748437696718,5.7492,173.85,173.84,0.04138718]
[1748437697612,5.749,173.86,173.84,0.04138718]
[1748437697811,0.0437915,173.88,173.84,0.04138718]
[1748437698114,5.7488,173.87,173.84,5.79078718]
[1748437698614,5.7491,173.86,173.84,0.04138718]
[1748437698812,0.0437915,173.88,173.84,0.04138718]
[1748437699019,0.0437915,173.88,173.85,29.02]
[1748437699213,5.747,173.92,173.86,12.33529023]
[1748437699916,5.7467,173.93,173.86,12.33529023]
[1748437700317,0.04033515,173.91,173.88,0.0384205]
[1748437700514,0.04033515,173.91,173.89,29.02]
[1748437701106,0.04033515,173.91,173.89,34.7678]
[1748437701507,0.04033515,173.91,173.89,39.38039023]
[1748437701910,31.1015,174.0,173.89,39.38039023]
[1748437702514,5.7462,173.95,173.91,5.7471]
[1748437702725,5.7462,173.95,173.89,39.38039023]
[1748437702919,0.04062888,173.94,173.9,0.03836104]
[1748437704720,0.04062888,173.94,173.93,5.7466]
[1748437704908,30.9876,174.03,173.93,29.0]
[1748437705110,29.0,174.03,173.93,29.0]
[1748437705407,2.0327,174.05,173.93,29.0]
[1748437705812,2.0327,174.05,173.97,0.03820839]
[1748437705813,0.03913934,174.01,173.97,0.03820839]
[1748437706014,0.03913934,174.01,173.97,29.03820839]
[1748437706621,5.7446,174.0,173.97,29.03820839]
[1748437707321,5.7446,174.0,173.97,34.78340839]
[1748437708007,5.78313934,174.01,173.97,34.78340839]
[1748437708312,0.03913934,174.01,173.97,29.03820839]
[1748437709009,5.78313934,174.01,173.97,29.03820839]
[1748437709624,0.03913934,174.01,173.97,29.03820839]
[1748437710210,0.03913934,174.01,174.0,5.7443]
[1748437710416,0.03913934,174.01,173.97,29.03820839]
[1748437710819,31.0204,174.1,173.99,10.36039023]
[1748437711019,29.0,174.1,173.99,10.36039023]
[1748437711222,5.7415,174.09,174.02,10.36039023]
[1748437711513,1.9472,174.14,174.03,29.0]
[1748437711718,5.7409,174.11,174.07,5.7419]
[1748437711921,0.04319412,174.1,174.07,29.03944232]
[1748437712318,0.04319412,174.1,174.08,5.7416]
[1748437712920,0.04319412,174.1,174.09,5.7413]
[1748437713122,0.04319412,174.1,174.07,29.03944232]
[1748437713519,0.04319412,174.1,174.08,5.7414]
[1748437714120,0.04319412,174.1,174.09,5.7413]
[1748437714321,28.98,174.19,174.07,29.03944232]
[1748437714524,28.98,174.19,174.1,5.7407]
[1748437714921,28.98,174.19,174.07,31.0159]
[1748437715226,28.98,174.19,174.08,5.7416]
[1748437715426,5.74,174.13,174.12,0.0407191]
[1748437716433,5.7398,174.14,174.12,0.0407191]
[1748437716821,0.03671903,174.15,174.12,0.0407191]
[1748437717925,0.03671903,174.15,174.13,5.74]
[1748437718330,0.03671903,174.15,174.14,5.7396]
[1748437718530,1.9267,174.2,174.12,0.0407191]
[1748437718718,5.7386,174.18,174.12,0.0407191]
[1748437718920,1.9267,174.2,174.12,0.0407191]
[1748437719329,1.9267,174.2,174.13,5.7399]
[1748437719330,5.7389,174.17,174.13,5.7399]
[1748437719526,0.04426229,174.17,174.12,0.0407191]
[1748437719826,5.74,174.13,174.12,0.0407191]
[1748437723629,5.7413,174.09,174.08,29.06]
[1748437723829,10.36039023,174.15,174.06,29.06]
[1748437724133,39.42039023,174.15,174.05,34.8025]
[1748437724332,29.06,174.15,174.08,5.7415]
[1748437724727,29.06,174.15,174.1,0.04297572]
[1748437724728,0.04185318,174.13,174.1,0.04297572]
[1748437724928,5.7405,174.12,174.1,0.04297572]
[1748437725325,5.78195318,174.13,174.1,5.78367572]
[1748437726329,0.04185318,174.13,174.1,29.10297572]